Workbook

Sheet Как пользоваться
A1: Идем в настройки, заполняем таблички(все, кроме серых ячеек)
A2: Идем в базу, заполняем там строчки(все, кроме серых ячеек)
A3: Если будет заполнена стоимость закупа, то это будет пополнение склада, и списание, если указана стоимость продажи
A4: остатки можно увидеть в самой базе, в прайсе(в настройках) и на листе остатки, сводная.
A5: Для печати в накладную, поставить 1 перед строчкой, она будет распечатана
A6: Поигрались? Теперь принимаем пожелания по улучшению :)

Sheet База
A1: Пометка для накладной | B1: Дата | C1: менеджер | D1: клиент | E1: наименование | F1: ед изм | G1: количество | H1: Стоимость закупа по прайсу | I1: Стоимость закупа | J1: Итоговая стоимость закупа | K1: Стоимость реализации по прайсу | L1: Стоимость реализации | M1: Итоговая стоимость реализации | N1: Остаток
B2: 2017-01-19 | C2: Роман | D2: Погосов | E2: Гринфилд голден цейлон 25п | F2: =VLOOKUP(база[[#This Row],[наименование]],прайс[],2,FALSE) -> шт | G2: 10 | H2: =VLOOKUP(база[[#This Row],[наименование]],прайс[],3,FALSE) -> 23 | I2: 1 | J2: =база[[#This Row],[Стоимость закупа по прайсу]]*база[[#This Row],[Стоимость закупа]] -> 23 | K2: =VLOOKUP(база[[#This Row],[наименование]],прайс[],4,FALSE) -> 29.9 | M2: =база[[#This Row],[Стоимость реализации по прайсу]]*база[[#This Row],[Стоимость реализации]] -> 0 | N2: =SUM((база[[#This Row],[наименование]]=база[наименование])*(база[Стоимость закупа]<>0)*база[количество])-SUM((база[[#This Row],[наименование]]=база[наименование])*(база[Стоимость реализации]<>0)*база[количество]) -> 2
A3: 1 | B3: 2017-01-19 | C3: Роман | D3: Погосов | E3: Ахмад черн 25п | F3: =VLOOKUP(база[[#This Row],[наименование]],прайс[],2,FALSE) -> шт | G3: 50 | H3: =VLOOKUP(база[[#This Row],[наименование]],прайс[],3,FALSE) -> 52 | I3: 11 | J3: =база[[#This Row],[Стоимость закупа по прайсу]]*база[[#This Row],[Стоимость закупа]] -> 572 | K3: =VLOOKUP(база[[#This Row],[наименование]],прайс[],4,FALSE) -> 67.6 | M3: =база[[#This Row],[Стоимость реализации по прайсу]]*база[[#This Row],[Стоимость реализации]] -> 0 | N3: =SUM((база[[#This Row],[наименование]]=база[наименование])*(база[Стоимость закупа]<>0)*база[количество])-SUM((база[[#This Row],[наименование]]=база[наименование])*(база[Стоимость реализации]<>0)*база[количество]) -> 40
B4: 2017-01-19 | C4: Виктор | D4: Погосов | E4: Гринфилд голден цейлон 25п | F4: =VLOOKUP(база[[#This Row],[наименование]],прайс[],2,FALSE) -> шт | G4: 13 | H4: =VLOOKUP(база[[#This Row],[наименование]],прайс[],3,FALSE) -> 23 | I4: 10 | J4: =база[[#This Row],[Стоимость закупа по прайсу]]*база[[#This Row],[Стоимость закупа]] -> 230 | K4: =VLOOKUP(база[[#This Row],[наименование]],прайс[],4,FALSE) -> 29.9 | M4: =база[[#This Row],[Стоимость реализации по прайсу]]*база[[#This Row],[Стоимость реализации]] -> 0 | N4: =SUM((база[[#This Row],[наименование]]=база[наименование])*(база[Стоимость закупа]<>0)*база[количество])-SUM((база[[#This Row],[наименование]]=база[наименование])*(база[Стоимость реализации]<>0)*база[количество]) -> 2
B5: 2017-01-19 | C5: Виктор | D5: Погосов | E5: Гринфилд голден цейлон 25п | F5: =VLOOKUP(база[[#This Row],[наименование]],прайс[],2,FALSE) -> шт | G5: 21 | H5: =VLOOKUP(база[[#This Row],[наименование]],прайс[],3,FALSE) -> 23 | J5: =база[[#This Row],[Стоимость закупа по прайсу]]*база[[#This Row],[Стоимость закупа]] -> 0 | K5: =VLOOKUP(база[[#This Row],[наименование]],прайс[],4,FALSE) -> 29.9 | L5: 30 | M5: =база[[#This Row],[Стоимость реализации по прайсу]]*база[[#This Row],[Стоимость реализации]] -> 897 | N5: =SUM((база[[#This Row],[наименование]]=база[наименование])*(база[Стоимость закупа]<>0)*база[количество])-SUM((база[[#This Row],[наименование]]=база[наименование])*(база[Стоимость реализации]<>0)*база[количество]) -> 2
B6: 2017-01-19 | C6: Максим | D6: Погосов | E6: Ахмад черн 25п | F6: =VLOOKUP(база[[#This Row],[наименование]],прайс[],2,FALSE) -> шт | G6: 10 | H6: =VLOOKUP(база[[#This Row],[наименование]],прайс[],3,FALSE) -> 52 | J6: =база[[#This Row],[Стоимость закупа по прайсу]]*база[[#This Row],[Стоимость закупа]] -> 0 | K6: =VLOOKUP(база[[#This Row],[наименование]],прайс[],4,FALSE) -> 67.6 | L6: 70 | M6: =база[[#This Row],[Стоимость реализации по прайсу]]*база[[#This Row],[Стоимость реализации]] -> 4732 | N6: =SUM((база[[#This Row],[наименование]]=база[наименование])*(база[Стоимость закупа]<>0)*база[количество])-SUM((база[[#This Row],[наименование]]=база[наименование])*(база[Стоимость реализации]<>0)*база[количество]) -> 40

Sheet Настройки
A1: менеджеры | C1: ИП | D1: Адресс | F1: наименование | G1: ед. изм. | H1: Закуп | I1: Реализация | J1: Остаток | K1: Стоимость остатка
A2: Роман | C2: Погосов | F2: Гринфилд голден цейлон 25п | G2: шт | H2: 23 | I2: =прайс[[#This Row],[Закуп]]+прайс[[#This Row],[Закуп]]*30% -> 29.9 | J2: =SUM((прайс[[#This Row],[наименование]]=база[наименование])*(база[Стоимость закупа]<>0)*база[количество])-SUM((прайс[[#This Row],[наименование]]=база[наименование])*(база[Стоимость реализации]<>0)*база[количество]) -> 2 | K2: =SUM((прайс[[#This Row],[наименование]]=база[наименование])*(база[Итоговая стоимость закупа])) -> 253
A3: Виктор | C3: Гаспорян | F3: Липтон черн. 25п | G3: шт | H3: 56 | I3: =прайс[[#This Row],[Закуп]]+прайс[[#This Row],[Закуп]]*30% -> 72.8 | J3: =SUM((прайс[[#This Row],[наименование]]=база[наименование])*(база[Стоимость закупа]<>0)*база[количество])-SUM((прайс[[#This Row],[наименование]]=база[наименование])*(база[Стоимость реализации]<>0)*база[количество]) -> 0 | K3: =SUM((прайс[[#This Row],[наименование]]=база[наименование])*(база[Итоговая стоимость закупа])) -> 0
A4: Максим | C4: Редько | F4: Ахмад черн 25п | G4: шт | H4: 52 | I4: =прайс[[#This Row],[Закуп]]+прайс[[#This Row],[Закуп]]*30% -> 67.6 | J4: =SUM((прайс[[#This Row],[наименование]]=база[наименование])*(база[Стоимость закупа]<>0)*база[количество])-SUM((прайс[[#This Row],[наименование]]=база[наименование])*(база[Стоимость реализации]<>0)*база[количество]) -> 40 | K4: =SUM((прайс[[#This Row],[наименование]]=база[наименование])*(база[Итоговая стоимость закупа])) -> 572
C5: Саванов | F5: Кофе Черная Карта Голд м\у 75гр.(12шт) | G5: шт | H5: 94 | I5: =прайс[[#This Row],[Закуп]]+прайс[[#This Row],[Закуп]]*30% -> 122.2 | J5: =SUM((прайс[[#This Row],[наименование]]=база[наименование])*(база[Стоимость закупа]<>0)*база[количество])-SUM((прайс[[#This Row],[наименование]]=база[наименование])*(база[Стоимость реализации]<>0)*база[количество]) -> 0 | K5: =SUM((прайс[[#This Row],[наименование]]=база[наименование])*(база[Итоговая стоимость закупа])) -> 0
C6: Полежаева Кондитерка | F6: Кофе Черная Карта Голд м\у 150гр.(6шт) | G6: шт | H6: 98 | I6: =прайс[[#This Row],[Закуп]]+прайс[[#This Row],[Закуп]]*30% -> 127.4 | J6: =SUM((прайс[[#This Row],[наименование]]=база[наименование])*(база[Стоимость закупа]<>0)*база[количество])-SUM((прайс[[#This Row],[наименование]]=база[наименование])*(база[Стоимость реализации]<>0)*база[количество]) -> 0 | K6: =SUM((прайс[[#This Row],[наименование]]=база[наименование])*(база[Итоговая стоимость закупа])) -> 0
C7: Обора 30 | F7: Кофе Черная Карта Голд ст\б 95гр (12шт) | G7: шт | H7: 63 | I7: =прайс[[#This Row],[Закуп]]+прайс[[#This Row],[Закуп]]*30% -> 81.9 | J7: =SUM((прайс[[#This Row],[наименование]]=база[наименование])*(база[Стоимость закупа]<>0)*база[количество])-SUM((прайс[[#This Row],[наименование]]=база[наименование])*(база[Стоимость реализации]<>0)*база[количество]) -> 0 | K7: =SUM((прайс[[#This Row],[наименование]]=база[наименование])*(база[Итоговая стоимость закупа])) -> 0
C8: Обора 58 | F8: Кофе Черная Карта Голд ст\б 47гр. (12шт) | G8: шт | H8: 85 | I8: =прайс[[#This Row],[Закуп]]+прайс[[#This Row],[Закуп]]*30% -> 110.5 | J8: =SUM((прайс[[#This Row],[наименование]]=база[наименование])*(база[Стоимость закупа]<>0)*база[количество])-SUM((прайс[[#This Row],[наименование]]=база[наименование])*(база[Стоимость реализации]<>0)*база[количество]) -> 0 | K8: =SUM((прайс[[#This Row],[наименование]]=база[наименование])*(база[Итоговая стоимость закупа])) -> 0
C9: Бешта | F9: Кофе Нескафе Голд 47.5гр. Ст\б (12шт) | G9: шт | H9: 38 | I9: =прайс[[#This Row],[Закуп]]+прайс[[#This Row],[Закуп]]*30% -> 49.4 | J9: =SUM((прайс[[#This Row],[наименование]]=база[наименование])*(база[Стоимость закупа]<>0)*база[количество])-SUM((прайс[[#This Row],[наименование]]=база[наименование])*(база[Стоимость реализации]<>0)*база[количество]) -> 0 | K9: =SUM((прайс[[#This Row],[наименование]]=база[наименование])*(база[Итоговая стоимость закупа])) -> 0
C10: Самигулина | F10: Кофе Нескафе Голд 95гр ст\б (12шт) | G10: шт | H10: 87 | I10: =прайс[[#This Row],[Закуп]]+прайс[[#This Row],[Закуп]]*30% -> 113.1 | J10: =SUM((прайс[[#This Row],[наименование]]=база[наименование])*(база[Стоимость закупа]<>0)*база[количество])-SUM((прайс[[#This Row],[наименование]]=база[наименование])*(база[Стоимость реализации]<>0)*база[количество]) -> 0 | K10: =SUM((прайс[[#This Row],[наименование]]=база[наименование])*(база[Итоговая стоимость закупа])) -> 0
C11: Саркисьян | F11: Кофе Нескафе Голд м\у 150гр (12шт) | G11: шт | H11: 84 | I11: =прайс[[#This Row],[Закуп]]+прайс[[#This Row],[Закуп]]*30% -> 109.2 | J11: =SUM((прайс[[#This Row],[наименование]]=база[наименование])*(база[Стоимость закупа]<>0)*база[количество])-SUM((прайс[[#This Row],[наименование]]=база[наименование])*(база[Стоимость реализации]<>0)*база[количество]) -> 0 | K11: =SUM((прайс[[#This Row],[наименование]]=база[наименование])*(база[Итоговая стоимость закупа])) -> 0
C12: Палий | F12: Кофе Нескафе Голд м\у 75гр (12шт) | G12: шт | H12: 70 | I12: =прайс[[#This Row],[Закуп]]+прайс[[#This Row],[Закуп]]*30% -> 91 | J12: =SUM((прайс[[#This Row],[наименование]]=база[наименование])*(база[Стоимость закупа]<>0)*база[количество])-SUM((прайс[[#This Row],[наименование]]=база[наименование])*(база[Стоимость реализации]<>0)*база[количество]) -> 0 | K12: =SUM((прайс[[#This Row],[наименование]]=база[наименование])*(база[Итоговая стоимость закупа])) -> 0
C13: Никитенко | F13: Кофе Нескафе Класик м\у 150гр (12шт) | G13: шт | H13: 66 | I13: =прайс[[#This Row],[Закуп]]+прайс[[#This Row],[Закуп]]*30% -> 85.8 | J13: =SUM((прайс[[#This Row],[наименование]]=база[наименование])*(база[Стоимость закупа]<>0)*база[количество])-SUM((прайс[[#This Row],[наименование]]=база[наименование])*(база[Стоимость реализации]<>0)*база[количество]) -> 0 | K13: =SUM((прайс[[#This Row],[наименование]]=база[наименование])*(база[Итоговая стоимость закупа])) -> 0
C14: Осокина | F14: Кофе Нескафе Класик м\у 75гр (12шт) | G14: шт | H14: 35 | I14: =прайс[[#This Row],[Закуп]]+прайс[[#This Row],[Закуп]]*30% -> 45.5 | J14: =SUM((прайс[[#This Row],[наименование]]=база[наименование])*(база[Стоимость закупа]<>0)*база[количество])-SUM((прайс[[#This Row],[наименование]]=база[наименование])*(база[Стоимость реализации]<>0)*база[количество]) -> 0 | K14: =SUM((прайс[[#This Row],[наименование]]=база[наименование])*(база[Итоговая стоимость закупа])) -> 0
C15: Авагимов | F15: Кофе Нескафе Класик ст\б 47.5гр (24шт) | G15: шт | H15: 67 | I15: =прайс[[#This Row],[Закуп]]+прайс[[#This Row],[Закуп]]*30% -> 87.1 | J15: =SUM((прайс[[#This Row],[наименование]]=база[наименование])*(база[Стоимость закупа]<>0)*база[количество])-SUM((прайс[[#This Row],[наименование]]=база[наименование])*(база[Стоимость реализации]<>0)*база[количество]) -> 0 | K15: =SUM((прайс[[#This Row],[наименование]]=база[наименование])*(база[Итоговая стоимость закупа])) -> 0
C16: Парфенова | F16: Кофе Нескафе Класик ст\б 95гр (12шт) | G16: шт | H16: 81 | I16: =прайс[[#This Row],[Закуп]]+прайс[[#This Row],[Закуп]]*30% -> 105.3 | J16: =SUM((прайс[[#This Row],[наименование]]=база[наименование])*(база[Стоимость закупа]<>0)*база[количество])-SUM((прайс[[#This Row],[наименование]]=база[наименование])*(база[Стоимость реализации]<>0)*база[количество]) -> 0 | K16: =SUM((прайс[[#This Row],[наименование]]=база[наименование])*(база[Итоговая стоимость закупа])) -> 0
C17: Величко | F17: Кофе Якобс 150гр м\у (9шт) | G17: шт | H17: 100 | I17: =прайс[[#This Row],[Закуп]]+прайс[[#This Row],[Закуп]]*30% -> 130 | J17: =SUM((прайс[[#This Row],[наименование]]=база[наименование])*(база[Стоимость закупа]<>0)*база[количество])-SUM((прайс[[#This Row],[наименование]]=база[наименование])*(база[Стоимость реализации]<>0)*база[количество]) -> 0 | K17: =SUM((прайс[[#This Row],[наименование]]=база[наименование])*(база[Итоговая стоимость закупа])) -> 0
C18: Кельдасов Знаменского | F18: Кофе Якобс 75гр м\у (12шт) | G18: шт | H18: 25 | I18: =прайс[[#This Row],[Закуп]]+прайс[[#This Row],[Закуп]]*30% -> 32.5 | J18: =SUM((прайс[[#This Row],[наименование]]=база[наименование])*(база[Стоимость закупа]<>0)*база[количество])-SUM((прайс[[#This Row],[наименование]]=база[наименование])*(база[Стоимость реализации]<>0)*база[количество]) -> 0 | K18: =SUM((прайс[[#This Row],[наименование]]=база[наименование])*(база[Итоговая стоимость закупа])) -> 0
C19: Кельдасов Невкипелого
C20: Кельдасов Артезианская
C21: Кельдасов Круживная

Sheet Накладная
A1: накладная
A3: дата | B3: =VLOOKUP(1,база[],2,FALSE) -> 2017-01-19
A5: клиент | B5: =VLOOKUP(1,база[],4,FALSE) -> Погосов | D5: менеджер | E5: =VLOOKUP(1,база[],3,FALSE) -> Роман
A7: товар | B7: =VLOOKUP(1,база[],5,FALSE) -> Ахмад черн 25п
A9: колличество | B9: =VLOOKUP(1,база[],7,FALSE) -> 50 | C9: =VLOOKUP(1,база[],6,FALSE) -> шт
A11: цена | B11: =IF(VLOOKUP(1,база[],9,FALSE)=0,VLOOKUP(1,база[],12,FALSE),VLOOKUP(1,база[],9,FALSE)) -> 11

Sheet Остатки
A1: Названия строк | B1: Максимум по полю Остаток
A2: Ахмад черн 25п | B2: 40
A3: Гринфилд голден цейлон 25п | B3: 2
A4: Общий итог | B4: 40
